bitfinex/quotes_SOLUSD_20250622
["timestamp","ask_amount","ask_price","bid_price","bid_amount"]
[1750558116731,25.75091659,134.9,134.89,7.41344799]
[1750558116910,25.75091659,134.91,134.89,7.41344799]
[1750558117095,25.75091659,134.91,134.88,7.41399762]
[1750558117293,10.32,134.93,134.89,25.75091659]
[1750558117495,10.32,134.93,134.88,25.94899168]
[1750558117694,10.32,134.93,134.9,25.75091659]
[1750558117931,10.32,134.93,134.89,25.75091659]
[1750558118103,25.75091659,134.92,134.88,25.94899168]
[1750558119331,10.32,134.93,134.84,7.41619697]
[1750558119332,25.75091659,134.89,134.84,7.41619697]
[1750558119499,25.75091659,134.89,134.78,7.9622]
[1750558119500,25.75091659,134.85,134.79,7.41894799]
[1750558119702,36.24,134.84,134.79,33.16986458]
[1750558119941,36.24,134.84,134.82,25.75091659]
[1750558120123,25.75091659,134.86,134.81,25.75091659]
[1750558120503,25.75091659,134.84,134.79,51.71723456]
[1750558120709,25.75091659,134.82,134.79,25.96631797]
[1750558120923,25.75091659,134.8,134.79,7.41894799]
[1750558121131,36.24,134.82,134.79,7.41894799]
[1750558121348,25.75091659,134.8,134.76,18.55144821]
[1750558121542,25.75091659,134.79,134.76,18.55144821]
[1750558121714,36.24,134.82,134.76,18.55144821]
[1750558121914,25.75091659,134.79,134.76,18.55144821]
[1750558122153,25.75091659,134.79,134.74,33.17261764]
[1750558122457,25.75091659,134.79,134.74,51.72687027]
[1750558122647,25.75091659,134.8,134.75,25.75091659]
[1750558122821,36.24,134.82,134.75,25.75091659]
[1750558123021,25.75091659,134.8,134.76,25.75091659]
[1750558123223,36.24,134.82,134.78,7.41949844]
[1750558123421,25.75091659,134.83,134.78,33.17041503]
[1750558123943,25.75091659,134.81,134.78,25.96824454]
[1750558124245,25.75091659,134.79,134.78,7.41949844]
[1750558124815,26.0,134.85,134.78,25.96824454]
[1750558125021,25.75091659,134.82,134.78,25.96824454]
[1750558125243,25.75091659,134.81,134.78,25.96824454]
[1750558125448,25.75091659,134.8,134.75,25.75091659]
[1750558125748,46.56,134.84,134.75,51.75091659]
[1750558125918,25.75091659,134.81,134.77,18.64964886]
[1750558126129,25.75091659,134.82,134.77,44.40056545]
[1750558126450,25.75091659,134.81,134.76,44.40056545]
[1750558127042,25.75091659,134.8,134.76,18.64964886]
[1750558127555,46.56,134.84,134.76,51.72301513]
[1750558127839,25.75091659,134.81,134.76,51.72301513]
[1750558128024,25.75091659,134.8,134.76,25.97209854]
[1750558128843,46.56,134.84,134.76,25.97209854]
[1750558129030,25.75091659,134.81,134.76,51.72301513]
[1750558129435,46.56,134.84,134.78,25.75091659]
[1750558129619,72.31091659,134.84,134.79,25.75091659]
[1750558130819,10.3,134.84,134.8,25.75091659]
[1750558131020,10.3,134.84,134.79,25.75091659]
[1750558131239,36.05091659,134.84,134.79,25.75091659]
[1750558131440,25.75091659,134.84,134.8,25.96439168]
[1750558131822,25.75091659,134.82,134.8,25.96439168]
[1750558132849,25.75091659,134.81,134.8,25.96439168]
[1750558133057,25.75091659,134.81,134.8,7.41839762]
[1750558133261,25.75091659,134.81,134.78,7.41949844]
[1750558133433,25.75091659,134.79,134.77,18.5491608]
[1750558133634,25.75091659,134.78,134.75,7.42115027]
[1750558133867,25.75091659,134.76,134.75,7.42115027]
[1750558134025,36.08,134.78,134.75,7.42115027]
[1750558134232,25.75091659,134.76,134.75,7.42115027]
[1750558134450,25.75091659,134.76,134.72,7.42280285]
[1750558134642,25.75091659,134.74,134.72,7.42280285]
[1750558134820,36.08,134.78,134.72,7.42280285]
[1750558135326,25.75091659,134.75,134.72,25.97980997]
[1750558135624,25.75091659,134.76,134.72,25.97980997]
[1750558136231,9.00798025,134.84,134.74,25.75091659]
[1750558136466,25.75091659,134.8,134.75,25.75091659]
[1750558136762,36.06,134.82,134.75,25.75091659]
[1750558136939,25.75091659,134.8,134.76,25.75091659]
[1750558137327,25.75091659,134.8,134.75,25.75091659]
[1750558137528,25.75091659,134.81,134.76,51.72301513]
[1750558138036,61.81091659,134.82,134.77,25.75091659]
[1750558138247,36.06,134.82,134.78,25.75091659]
[1750558138932,51.75091659,134.83,134.78,25.75091659]
[1750558139635,25.75091659,134.83,134.79,25.96631797]
[1750558139831,9.00798025,134.84,134.79,25.96631797]
[1750558140054,25.75091659,134.81,134.79,25.96631797]
[1750558140427,9.00798025,134.84,134.79,25.96631797]
[1750558140754,25.75091659,134.82,134.79,25.96631797]
[1750558140944,25.75091659,134.83,134.79,51.71723456]
[1750558141147,9.00798025,134.84,134.82,25.75091659]
[1750558141352,25.75091659,134.87,134.8,18.64964886]
[1750558141672,25.75091659,134.82,134.79,18.54736998]
[1750558141847,25.75091659,134.81,134.78,7.41949844]
[1750558142046,25.75091659,134.8,134.78,7.41949844]
[1750558142372,10.3,134.89,134.79,44.40056545]
[1750558142677,62.0,134.88,134.8,25.75091659]
[1750558142836,25.75091659,134.84,134.79,44.40056545]
[1750558143042,25.75091659,134.81,134.78,7.41949844]
[1750558143372,35.98,134.84,134.78,7.41949844]
[1750558143373,25.75091659,134.82,134.78,7.41949844]
[1750558143682,25.75091659,134.82,134.78,25.96824454]
[1750558144052,25.75091659,134.83,134.78,51.71916113]
[1750558144267,35.98,134.84,134.78,25.96824454]
[1750558144465,25.75091659,134.82,134.78,25.96824454]
[1750558144885,35.98,134.84,134.79,25.75091659]
[1750558145179,25.75091659,134.87,134.82,25.75091659]
[1750558145558,25.75091659,134.87,134.83,7.41674701]
[1750558145949,25.75091659,134.86,134.82,33.1681551]
[1750558146149,35.92,134.88,134.8,25.96439168]
[1750558146150,25.75091659,134.83,134.8,25.96439168]
[1750558146475,25.75091659,134.84,134.8,25.96439168]
[1750558147253,25.75091659,134.83,134.8,7.41839762]
[1750558147559,25.75091659,134.82,134.8,7.41839762]
[1750558147881,35.9,134.84,134.78,44.6178934]
[1750558148085,25.75091659,134.83,134.78,70.36880999]
[1750558148263,61.65091659,134.84,134.8,25.75091659]
[1750558148453,35.9,134.84,134.8,25.75091659]
[1750558149684,35.9,134.84,134.78,44.6178934]
[1750558149685,25.75091659,134.81,134.77,15.37943892]
[1750558149861,25.75091659,134.79,134.77,7.41993892]
[1750558150064,25.75091659,134.78,134.74,7.42170105]
[1750558150274,61.67091659,134.8,134.75,25.75091659]
[1750558150587,10.04,134.81,134.78,25.75091659]
[1750558151090,10.04,134.81,134.77,44.40056545]
[1750558151555,10.04,134.81,134.78,25.75091659]
[1750558151758,10.04,134.81,134.79,7.41894799]
[1750558152577,25.75091659,134.8,134.76,7.42059958]
[1750558152754,10.04,134.81,134.76,7.42059958]
[1750558152755,10.04,134.81,134.79,25.75091659]
[1750558153270,26.0,134.87,134.8,25.75091659]
[1750558153271,61.59091659,134.85,134.8,25.75091659]
[1750558153659,35.84,134.85,134.81,7.41784734]
[1750558153866,35.84,134.85,134.81,33.16876393]
[1750558154891,10.04,134.87,134.82,25.75091659]
[1750558155061,25.75091659,134.86,134.82,25.75091659]
[1750558155657,25.75091659,134.86,134.81,25.96246569]
[1750558155965,25.75091659,134.86,134.82,44.40056545]
[1750558156380,35.74,134.88,134.83,25.75091659]
[1750558156555,25.75091659,134.88,134.83,25.75091659]
[1750558156755,25.75091659,134.89,134.84,25.75091659]
[1750558156961,25.75091659,134.87,134.83,7.41674701]
[1750558157464,25.75091659,134.87,134.83,25.95861454]
[1750558157781,25.75091659,134.89,134.84,44.40056545]
[1750558157956,25.75091659,134.87,134.83,25.95861454]
[1750558158157,25.75091659,134.87,134.83,51.70953113]
[1750558158602,45.78,134.9,134.83,51.70953113]
[1750558158894,25.75091659,134.89,134.85,7.41564701]
[1750558159102,25.75091659,134.88,134.85,7.41564701]
[1750558159285,10.04,134.9,134.85,7.41564701]
[1750558159475,25.75091659,134.88,134.85,7.41564701]
[1750558160595,25.75091659,134.88,134.84,26.06584583]
[1750558160793,25.75091659,134.92,134.87,25.75091659]
[1750558161001,35.30047888,134.93,134.88,25.75091659]
[1750558161903,25.75091659,134.91,134.86,18.64964886]
[1750558162085,25.75091659,134.92,134.87,25.75091659]
[1750558162300,9.54956229,134.93,134.89,25.75091659]
[1750558162478,45.56,134.96,134.89,25.75091659]
[1750558162781,25.75091659,134.92,134.9,7.41289844]
[1750558164195,25.75091659,134.91,134.9,7.41289844]
[1750558164570,25.75091659,134.91,134.88,7.41399762]
[1750558164767,18.4996369,134.89,134.82,24.6125369]
[1750558164994,18.4996369,134.86,134.83,18.64964886]
[1750558165193,18.4996369,134.86,134.83,7.41674701]
[1750558165399,18.4996369,134.87,134.83,7.41674701]
[1750558165585,18.4996369,134.88,134.83,44.56603277]
[1750558165783,18.4996369,134.87,134.83,26.06639587]
[1750558166099,18.4996369,134.88,134.84,18.4996369]
[1750558166297,26.0,134.9,134.85,37.14928576]
[1750558166595,53.9996369,134.91,134.87,7.41454734]
[1750558166778,25.75408315,134.9,134.87,7.41454734]
[1750558167689,25.75408315,134.89,134.86,7.41509713]
[1750558168275,25.75408315,134.87,134.86,7.41509713]
[1750558168716,25.75408315,134.89,134.86,7.41509713]
[1750558169797,25.75408315,134.89,134.85,26.06529587]
[1750558170901,25.75408315,134.9,134.86,25.75408315]
[1750558171697,25.75408315,134.91,134.86,25.75408315]
[1750558172195,25.75408315,134.91,134.87,7.41454734]
[1750558172395,25.75408315,134.9,134.87,7.41454734]
[1750558172602,61.3,134.94,134.87,7.41454734]
[1750558172603,26.0,134.94,134.87,7.41454734]
[1750558172909,25.75408315,134.9,134.87,7.41454734]
[1750558173614,25.75408315,134.89,134.87,7.41454734]
[1750558173785,25.75408315,134.89,134.86,7.41509713]
[1750558173983,25.75408315,134.9,134.86,51.70692312]
[1750558174284,26.0,134.93,134.88,25.75408315]
[1750558174601,25.75408315,134.92,134.88,25.75408315]
[1750558175310,25.75408315,134.9,134.86,7.41509713]
[1750558175510,25.75408315,134.87,134.84,7.41619697]
[1750558175819,25.75408315,134.86,134.83,7.41660211]
[1750558176505,25.75408315,134.85,134.82,7.41720679]
[1750558176810,26.0,134.87,134.82,7.41720679]
[1750558176811,25.75408315,134.86,134.82,7.41720679]
[1750558177010,25.75408315,134.88,134.83,18.64964886]
[1750558177219,25.75408315,134.88,134.83,44.40373201]
[1750558177793,25.75408315,134.87,134.83,44.40373201]
[1750558177992,25.75408315,134.88,134.84,7.41619697]
[1750558178920,25.75408315,134.86,134.84,7.41619697]
[1750558179293,25.75408315,134.85,134.84,7.41619697]
[1750558180000,25.75408315,134.85,134.82,7.41729713]
[1750558180202,60.99408315,134.86,134.82,7.41729713]
[1750558181620,7.41242182,134.91,134.82,7.41729713]
[1750558181621,25.75408315,134.89,134.85,18.64964886]
[1750558181995,35.2,134.9,134.85,18.64964886]
[1750558182292,25.75408315,134.89,134.85,18.64964886]
[1750558182710,25.75408315,134.87,134.83,18.64964886]
[1750558183506,25.75408315,134.87,134.84,7.41619697]
[1750558183705,25.75408315,134.85,134.84,7.41619697]
[1750558183891,25.75408315,134.85,134.81,1.5448]
[1750558184090,25.75408315,134.85,134.82,7.41729713]
[1750558184295,60.85408315,134.86,134.82,33.17138028]
[1750558184508,60.85408315,134.86,134.82,25.96053997]
[1750558185124,25.75408315,134.85,134.82,7.41729713]
[1750558185420,25.75408315,134.84,134.82,7.41729713]
[1750558185718,25.75408315,134.83,134.81,8.96254359]
[1750558185921,25.75408315,134.84,134.81,8.96254359]
[1750558187319,25.75408315,134.83,134.81,8.96254359]
[1750558188417,25.75408315,134.82,134.81,7.41774359]
[1750558188716,25.75408315,134.82,134.79,7.41894799]
[1750558189016,5.4268824,134.85,134.79,7.41894799]
[1750558189017,18.51537254,134.81,134.79,7.41894799]
[1750558189205,18.51537254,134.82,134.79,7.41894799]
[1750558189521,18.51537254,134.81,134.78,7.41949844]
[1750558189727,18.51537254,134.82,134.78,7.41949844]
[1750558191526,18.51537254,134.79,134.72,25.97980997]
[1750558191724,18.51537254,134.78,134.73,18.51537254]
[1750558192219,53.37537254,134.77,134.72,25.97980997]
[1750558192421,18.51537254,134.76,134.72,44.49518251]
[1750558192627,34.86,134.77,134.69,26.45114591]
[1750558192628,18.51537254,134.74,134.69,26.45114591]
[1750558192796,18.51537254,134.73,134.7,7.42390497]
[1750558193002,18.51537254,134.74,134.7,25.9836674]
[1750558193803,18.51537254,134.74,134.71,18.64964886]
[1750558194000,34.86,134.77,134.71,18.64964886]
[1750558194001,18.51537254,134.75,134.71,18.64964886]
[1750558194519,18.51537254,134.74,134.71,18.64964886]
[1750558194817,18.51537254,134.74,134.72,7.42280285]
[1750558195020,44.51537254,134.8,134.72,7.42280285]
[1750558195202,18.51537254,134.75,134.72,7.42280285]
[1750558195729,34.84,134.79,134.72,44.49518251]
[1750558195934,7.6065,134.86,134.75,37.1650214]
[1750558196151,44.46,134.83,134.72,25.97980997]
[1750558196427,18.51537254,134.77,134.73,18.64964886]
[1750558196603,18.51537254,134.77,134.73,37.1650214]
[1750558196993,44.46,134.83,134.74,7.42170105]
[1750558196994,18.51537254,134.76,134.74,7.42170105]
[1750558197822,18.51537254,134.78,134.75,18.64964886]
[1750558197999,18.51537254,134.79,134.75,18.64964886]
[1750558198626,18.51537254,134.78,134.75,18.64964886]
[1750558198928,18.51537254,134.78,134.76,7.42059958]
[1750558199307,18.51537254,134.77,134.76,7.42059958]
[1750558199815,18.51537254,134.79,134.76,7.42059958]
[1750558200605,29.7071873,134.84,134.76,7.42059958]
[1750558200817,18.51537254,134.77,134.73,7.42225191]
[1750558201014,18.51537254,134.74,134.7,7.42390497]
[1750558201215,18.51537254,134.71,134.68,7.42456072]
[1750558201433,18.51537254,134.69,134.68,7.42456072]
[1750558201730,18.51537254,134.71,134.68,7.42456072]
[1750558202612,18.51537254,134.71,134.68,25.98707928]
[1750558202926,18.51537254,134.71,134.68,18.56251856]
[1750558203130,18.51537254,134.71,134.67,18.64964886]
[1750558203314,18.51537254,134.69,134.66,7.4261102]
[1750558203644,18.51537254,134.68,134.66,7.4261102]
[1750558203942,18.51537254,134.67,134.66,7.4261102]
[1750558204324,18.51537254,134.67,134.64,7.42670485]
[1750558204721,18.51537254,134.7,134.65,37.1650214]
[1750558204910,18.51537254,134.7,134.66,7.4261102]
[1750558205246,18.51537254,134.67,134.62,7.42831674]
[1750558205407,18.51537254,134.64,134.62,7.42831674]
[1750558205726,35.06,134.68,134.6,7.4294205]
[1750558205727,18.51537254,134.63,134.6,7.4294205]
[1750558205908,18.51537254,134.62,134.6,7.4294205]
[1750558206104,18.51537254,134.61,134.6,7.4294205]
[1750558206315,18.51537254,134.61,134.59,12.38457102]
[1750558206723,18.51537254,134.6,134.59,4.95461549]
[1750558207231,63.03074508,134.6,134.59,4.95461549]
[1750558207433,66.73790706,134.6,134.59,4.95461549]
[1750558207622,26.0,134.57,134.51,7.43439149]
[1750558207824,18.51537254,134.52,134.51,7.43439149]
[1750558208027,79.59537254,134.52,134.48,7.43604997]
[1750558208238,18.51537254,134.49,134.45,7.43770918]
[1750558208411,18.51537254,134.47,134.45,7.43770918]
[1750558208610,18.51537254,134.46,134.45,7.43770918]
[1750558208807,18.51537254,134.46,134.36,87.80176052]
[1750558208808,26.0,134.44,134.42,7.43936914]
[1750558209145,9.44,134.47,134.4,7.44047619]
[1750558209355,25.93168937,134.43,134.4,26.04166666]
[1750558209644,9.44,134.47,134.41,25.93168937]
[1750558209842,35.44,134.52,134.4,26.04166666]
[1750558210015,25.93168937,134.48,134.42,25.93168937]
[1750558210209,7.43219428,134.55,134.43,26.0]
[1750558210408,9.44,134.54,134.45,25.93168937]
[1750558210740,35.6,134.55,134.45,26.0]
[1750558210943,6.6328,134.61,134.46,18.64964886]
[1750558211141,26.0,134.57,134.47,26.02811034]
[1750558211347,45.66,134.6,134.5,25.93168937]
[1750558211519,25.93168937,134.64,134.48,44.64964886]
[1750558211720,36.14,134.61,134.51,25.93168937]
[1750558211944,36.24,134.63,134.54,25.93168937]
[1750558212132,36.19168937,134.64,134.52,18.64964886]
[1750558212133,10.26,134.64,134.52,18.64964886]
[1750558212339,25.93168937,134.61,134.51,36.0]
[1750558212539,25.93168937,134.62,134.57,25.93168937]
[1750558212736,10.26,134.68,134.59,25.93168937]
[1750558212933,46.54,134.68,134.59,25.93168937]
[1750558213248,46.54,134.68,134.6,7.4294205]
[1750558213249,25.93168937,134.64,134.6,7.4294205]
[1750558213454,25.93168937,134.63,134.6,26.00297176]
[1750558213672,10.26,134.68,134.61,44.58133823]
[1750558213871,10.26,134.68,134.63,25.93168937]
[1750558214159,25.93168937,134.69,134.61,18.64964886]
[1750558214322,26.0,134.72,134.64,25.93168937]
[1750558214522,25.93168937,134.68,134.63,25.93168937]
[1750558214747,25.93168937,134.68,134.62,18.64964886]
[1750558214961,84.48,134.73,134.62,18.64964886]
[1750558215121,25.93168937,134.68,134.63,51.92886681]
[1750558215520,25.93168937,134.67,134.63,25.99717744]
[1750558215750,25.93168937,134.66,134.63,25.99717744]
[1750558215937,25.93168937,134.67,134.63,25.99717744]
[1750558216136,84.48,134.73,134.63,25.99717744]
[1750558216435,84.48,134.73,134.63,51.92886681]
[1750558216436,25.93168937,134.67,134.63,51.92886681]
[1750558216838,25.93168937,134.68,134.63,51.92886681]
[1750558217226,25.93168937,134.64,134.63,7.42776498]
[1750558217423,25.93168937,134.67,134.63,7.42776498]
[1750558217622,25.93168937,134.68,134.63,51.92886681]
[1750558218235,25.93168937,134.67,134.63,25.99717744]
[1750558218422,25.93168937,134.68,134.64,25.93168937]
[1750558218624,26.0,134.71,134.63,7.42776498]
[1750558218625,25.93168937,134.66,134.63,7.42776498]
[1750558218855,26.0,134.71,134.6,1.6191]
[1750558218856,25.93168937,134.64,134.61,7.42886858]
[1750558219030,25.93168937,134.63,134.61,7.42886858]
[1750558219231,25.93168937,134.64,134.6,18.57316674]
[1750558219738,25.93168937,134.63,134.6,18.57316674]
[1750558220430,25.93168937,134.64,134.6,18.57316674]
[1750558220625,36.48,134.68,134.61,25.93168937]
[1750558220849,25.93168937,134.66,134.61,25.93168937]
[1750558221336,25.93168937,134.66,134.6,18.57316674]
[1750558221545,25.93168937,134.66,134.61,25.93168937]
[1750558221958,25.93168937,134.66,134.62,25.93168937]
[1750558222202,25.93168937,134.65,134.6,18.57316674]
[1750558222456,25.93168937,134.67,134.62,25.93168937]
[1750558222654,25.93168937,134.66,134.62,25.93168937]
[1750558222955,26.0,134.69,134.6,18.57316674]
[1750558222956,25.93168937,134.68,134.63,25.93168937]
[1750558223325,36.38,134.7,134.64,51.92693594]
[1750558223546,62.31168937,134.7,134.65,25.93168937]
[1750558223850,36.38,134.7,134.67,25.93168937]
[1750558224053,25.93168937,134.72,134.68,25.93168937]
[1750558224557,25.93168937,134.73,134.69,25.93168937]
[1750558224749,25.93168937,134.73,134.68,25.93168937]
[1750558225260,8.87622424,134.74,134.71,25.93168937]
[1750558225452,8.87622424,134.74,134.72,7.42280285]
[1750558225639,25.93168937,134.76,134.72,7.42280285]
[1750558225640,25.93168937,134.76,134.72,25.97980997]
[1750558225838,3.67726187,134.83,134.73,25.93168937]
[1750558226050,25.93168937,134.76,134.72,7.42280285]
[1750558226268,36.3,134.77,134.72,7.42280285]
[1750558226447,25.93168937,134.73,134.7,7.42390497]
[1750558226639,25.93168937,134.71,134.7,7.42390497]
[1750558226975,25.93168937,134.71,134.67,7.42555877]
[1750558227142,26.0,134.74,134.67,7.42555877]
[1750558227143,25.93168937,134.69,134.67,7.42555877]
[1750558227343,36.3,134.72,134.64,25.99524657]
[1750558227547,25.93168937,134.68,134.64,25.99524657]
[1750558227746,25.93168937,134.69,134.64,51.92693594]
[1750558228846,25.93168937,134.68,134.64,25.99524657]
[1750558229066,36.3,134.72,134.64,51.92693594]
[1750558229067,25.93168937,134.69,134.64,51.92693594]
[1750558229271,25.93168937,134.7,134.65,25.93168937]
[1750558229563,25.93168937,134.7,134.67,7.42555877]
[1750558230058,25.93168937,134.69,134.67,7.42555877]
[1750558230244,25.93168937,134.68,134.67,7.42555877]
[1750558230960,25.93168937,134.69,134.67,7.42555877]
[1750558231166,36.3,134.72,134.67,7.42555877]
[1750558231346,25.93168937,134.69,134.67,7.42555877]
[1750558231549,25.93168937,134.68,134.65,7.42666171]
[1750558231754,25.93168937,134.67,134.65,7.42666171]
[1750558231959,25.93168937,134.66,134.62,7.42831674]
[1750558232161,25.93168937,134.63,134.62,7.42831674]
[1750558232347,36.12,134.67,134.62,7.42831674]
[1750558232548,25.93168937,134.65,134.62,7.42831674]
[1750558232754,25.93168937,134.64,134.6,7.42890063]
[1750558232962,25.93168937,134.62,134.6,7.42890063]
[1750558233479,25.93168937,134.61,134.58,7.43052459]
[1750558233784,25.93168937,134.6,134.58,7.43052459]
[1750558233953,25.93168937,134.61,134.58,7.43052459]
[1750558234153,62.1,134.62,134.58,7.43052459]
[1750558234459,25.93168937,134.6,134.58,7.43052459]
[1750558234663,25.93168937,134.59,134.56,7.43109433]
[1750558235452,25.93168937,134.59,134.55,7.43218134]
[1750558235651,25.93168937,134.58,134.55,7.43218134]
[1750558236258,25.93168937,134.59,134.55,7.43218134]
[1750558236466,25.93168937,134.56,134.55,7.43218134]
[1750558236773,36.1,134.57,134.49,26.02394228]
[1750558236973,62.1,134.58,134.52,25.93168937]
[1750558237276,62.1,134.58,134.49,26.02394228]
[1750558237277,25.93168937,134.55,134.49,26.02394228]
[1750558237477,25.93168937,134.55,134.48,8.0761]
[1750558237478,10.26,134.59,134.54,51.94625751]
[1750558237783,48.16,134.7,134.54,51.94625751]
[1750558237784,36.16,134.65,134.58,25.93168937]
[1750558237985,25.93168937,134.64,134.59,25.93168937]
[1750558238281,62.16,134.65,134.57,25.93168937]
[1750558238577,62.16,134.65,134.6,25.93168937]
[1750558238578,36.16,134.65,134.6,25.93168937]
[1750558238762,25.93168937,134.63,134.58,25.93168937]
[1750558238963,25.93168937,134.62,134.57,25.93168937]
[1750558239357,25.93168937,134.6,134.54,26.01456814]
[1750558239585,25.93168937,134.55,134.49,7.43549706]
[1750558239752,25.93168937,134.52,134.49,7.43549706]
[1750558240087,26.0,134.56,134.49,7.43549706]
[1750558240088,26.0,134.56,134.49,33.36718643]
[1750558240286,36.28,134.56,134.5,25.93168937]
[1750558240488,25.93168937,134.54,134.49,26.02423971]
[1750558240784,25.93168937,134.53,134.49,7.43549706]
[1750558241668,36.28,134.56,134.49,33.36718643]
[1750558241867,25.93168937,134.52,134.49,26.02423971]
[1750558242186,36.28,134.56,134.49,7.43549706]
[1750558242356,25.93168937,134.5,134.38,6.5069]
[1750558242564,25.93168937,134.45,134.43,7.43881574]
[1750558242768,36.28,134.49,134.42,7.43936419]
[1750558243067,36.28,134.49,134.4,7.44047619]
[1750558243270,25.93168937,134.42,134.4,7.44047619]
[1750558243476,10.28,134.5,134.4,33.37216556]
[1750558243660,36.86,134.49,134.44,25.93168937]
[1750558243860,36.63168937,134.51,134.46,25.93168937]
[1750558244062,10.7,134.51,134.46,25.93168937]
[1750558244366,10.7,134.51,134.47,25.93168937]
[1750558244580,10.7,134.51,134.44,18.64964886]
[1750558244761,25.93168937,134.5,134.44,18.64964886]
[1750558245087,10.7,134.51,134.44,18.64964886]
[1750558245291,36.63168937,134.51,134.46,25.93168937]
[1750558245585,36.63168937,134.51,134.47,7.43660295]
[1750558245885,10.7,134.51,134.47,7.43660295]
[1750558246078,10.7,134.51,134.47,51.95979971]
[1750558246079,36.63168937,134.51,134.47,51.95979971]
[1750558246260,36.63168937,134.51,134.47,26.02811034]
[1750558246588,10.7,134.51,134.47,26.02811034]
[1750558246759,10.7,134.51,134.47,33.36829232]
[1750558247178,36.63168937,134.51,134.47,7.43660295]
[1750558247492,25.93168937,134.48,134.44,25.93168937]
[1750558247659,10.7,134.51,134.45,7.43770918]
[1750558247858,26.0,134.5,134.41,25.93168937]
[1750558248059,25.93168937,134.47,134.42,25.93168937]
[1750558248474,26.0,134.5,134.43,25.93168937]
[1750558248788,26.0,134.5,134.4,63.24404761]
[1750558248789,25.93168937,134.46,134.4,26.04166666]
[1750558249090,25.93168937,134.46,134.4,7.44047619]
[1750558249091,25.93168937,134.43,134.4,7.44047619]
[1750558249391,63.32,134.48,134.4,33.37216556]
[1750558249577,25.93168937,134.46,134.4,26.04166666]
[1750558249763,25.93168937,134.46,134.42,7.43936914]
[1750558249960,25.93168937,134.45,134.42,7.43936914]
[1750558250182,25.93168937,134.44,134.4,7.44015663]
[1750558250486,25.93168937,134.43,134.4,7.44015663]
[1750558250791,25.93168937,134.44,134.4,7.44015663]
[1750558250962,26.0,134.46,134.4,7.44015663]
[1750558251164,37.42,134.47,134.4,7.44015663]
[1750558251379,25.93168937,134.43,134.4,7.44015663]
[1750558251698,26.0,134.45,134.39,9.05663384]
[1750558251872,25.93168937,134.43,134.39,9.05663384]
[1750558252066,37.44,134.46,134.39,9.05663384]
[1750558252375,25.93168937,134.44,134.39,53.5908978]
[1750558252761,25.93168937,134.45,134.39,27.65920843]
[1750558252972,25.93168937,134.45,134.4,25.93168937]
[1750558253188,25.93168937,134.42,134.39,9.05663384]
[1750558253560,25.93168937,134.43,134.39,9.05663384]
[1750558253761,25.93168937,134.43,134.39,27.65920843]
[1750558254162,10.7,134.48,134.42,25.93168937]
[1750558254376,25.93168937,134.47,134.42,25.93168937]
[1750558254891,25.93168937,134.47,134.43,25.93168937]
[1750558255185,36.63168937,134.48,134.43,25.93168937]
[1750558255386,10.7,134.48,134.41,6.1439]
[1750558255588,25.93168937,134.5,134.42,18.64964886]
[1750558255767,25.93168937,134.5,134.46,26.0300461]
[1750558256172,8.63389937,134.52,134.46,7.43715603]
[1750558256679,25.93168937,134.48,134.46,7.43715603]
[1750558257390,8.63389937,134.52,134.44,7.43826242]
[1750558257565,25.93168937,134.47,134.44,26.03391847]
[1750558257762,8.63389937,134.52,134.44,26.03391847]
[1750558257987,8.63389937,134.52,134.45,25.93168937]
[1750558258189,34.56558874,134.52,134.47,25.93168937]
[1750558258396,8.63389937,134.52,134.49,25.93168937]
[1750558258576,8.63389937,134.52,134.45,18.64964886]
[1750558258577,8.63389937,134.52,134.51,25.93168937]
[1750558258767,36.63168937,134.56,134.51,25.93168937]
[1750558258970,25.93168937,134.55,134.51,25.93168937]
[1750558259167,10.7,134.56,134.46,1.5145]
[1750558259368,25.93168937,134.52,134.47,25.93168937]
[1750558260090,25.93168937,134.52,134.48,26.02617489]
[1750558260674,10.7,134.56,134.48,7.43604997]
[1750558260867,25.93168937,134.5,134.48,7.43604997]
[1750558261376,37.2,134.54,134.48,51.95786426]
[1750558261695,25.93168937,134.59,134.53,25.93168937]
[1750558261871,10.7,134.61,134.57,51.94045803]
[1750558262069,25.93168937,134.64,134.59,25.93168937]
[1750558262276,25.93168937,134.63,134.58,25.93168937]
[1750558262575,84.92,134.67,134.59,25.93168937]
[1750558262779,25.93168937,134.66,134.62,25.93168937]
[1750558262980,58.92,134.67,134.58,18.64964886]
[1750558262981,25.93168937,134.65,134.58,18.64964886]
[1750558263182,10.7,134.67,134.62,25.93168937]
[1750558263383,10.7,134.67,134.63,25.93168937]
[1750558263384,0.5,134.66,134.63,25.93168937]
[1750558263672,36.63168937,134.67,134.58,18.64964886]
[1750558263871,10.7,134.67,134.63,25.93168937]
[1750558264091,10.7,134.67,134.64,7.4272133]